bitfinex-derivatives/quotes_BTCF0:USTF0_20241029
["timestamp","ask_amount","ask_price","bid_price","bid_amount"]
[1730230613122,1.5,72996.0,72995.0,0.068501]
[1730230613320,1.5,72996.0,72993.0,0.30437692]
[1730230613321,0.3608,72997.0,72993.0,0.30437692]
[1730230613625,0.3608,72997.0,72996.0,0.0685]
[1730230614133,1.5,73003.0,73002.0,0.068494]
[1730230614134,1.50076,73003.0,73002.0,0.068494]
[1730230614329,0.00205586,73008.0,72999.0,0.30437692]
[1730230614628,0.068491,73006.0,73002.0,0.068494]
[1730230614830,0.068491,73006.0,73003.0,0.068492]
[1730230615420,0.06849,73007.0,73001.0,0.3608]
[1730230615623,0.068492,73005.0,73001.0,0.25113451]
[1730230615822,1.8608,73011.0,73001.0,0.25113451]
[1730230616021,0.068494,73002.0,73001.0,0.25113451]
[1730230616221,0.068494,73002.0,72980.0,0.282414]
[1730230616222,0.429294,73002.0,72988.0,0.068507]
[1730230616423,0.068506,72990.0,72988.0,0.01952246]
[1730230616623,0.05801087,72989.0,72988.0,0.30437692]
[1730230616824,0.12664559,72995.0,72988.0,0.37288392]
[1730230617019,0.068503,72993.0,72991.0,0.068504]
[1730230617224,0.05814459,72992.0,72991.0,0.068504]
[1730230617425,0.068503,72993.0,72991.0,0.068504]
[1730230617620,0.05831997,72992.0,72988.0,0.30437692]
[1730230617828,0.3608,72996.0,72989.0,0.068506]
[1730230618026,0.068504,72992.0,72989.0,0.068506]
[1730230618223,0.068505,72991.0,72988.0,0.30437692]
[1730230618440,0.3608,72996.0,72988.0,0.30437692]
[1730230618733,0.05830134,72995.0,72987.0,0.01908089]
[1730230618926,0.05830134,72995.0,72983.0,0.3608]
[1730230618927,0.05830134,72994.0,72983.0,0.3608]
[1730230619235,0.3608,72984.0,72968.0,0.71990292]
[1730230619423,0.05830134,72983.0,72968.0,0.52237692]
[1730230619623,0.3608,72990.0,72975.0,0.01986872]
[1730230619624,0.068515,72980.0,72975.0,0.01986872]
[1730230619934,0.19228512,72980.0,72976.0,0.068518]
[1730230620126,0.19228512,72980.0,72975.0,0.01986872]
[1730230620528,0.19228512,72980.0,72976.0,0.068519]
[1730230620843,0.19228512,72980.0,72964.0,0.429329]
[1730230620844,0.60291885,72980.0,72964.0,0.00132]
[1730230621131,0.068519,72976.0,72967.0,0.068527]
[1730230621332,0.05830134,72975.0,72972.0,0.068522]
[1730230621534,0.05830134,72974.0,72972.0,0.068522]
[1730230621832,0.05830134,72973.0,72972.0,0.068522]
[1730230622229,0.05830134,72973.0,72972.0,0.52637686]
[1730230622737,0.3608,72978.0,72977.0,0.068518]
[1730230623030,0.3608,72978.0,72972.0,0.45917486]
[1730230623230,0.068524,72971.0,72968.0,0.01926569]
[1730230623432,0.068524,72970.0,72965.0,0.3608]
[1730230623620,0.3608,72978.0,72960.0,0.068533]
[1730230623825,0.3608,72978.0,72962.0,0.068531]
[1730230624028,0.068526,72968.0,72962.0,0.068531]
[1730230624228,0.068526,72968.0,72958.0,0.30437692]
[1730230624229,0.06853,72964.0,72958.0,0.39267454]
[1730230624436,0.06853,72964.0,72961.0,0.068532]
[1730230624631,0.068528,72967.0,72963.0,0.068531]
[1730230625024,0.3608,72972.0,72966.0,0.19753032]
[1730230625230,0.3608,72978.0,72971.0,0.19753032]
[1730230625429,0.068521,72974.0,72971.0,0.19753032]
[1730230625628,0.3608,72978.0,72972.0,0.068522]
[1730230626030,0.068518,72977.0,72972.0,0.068522]
[1730230626636,0.068518,72977.0,72974.0,0.06852]
[1730230626937,0.068522,72972.0,72971.0,0.19753032]
[1730230627132,0.3608,72972.0,72964.0,0.3608]
[1730230627439,0.068536,72957.0,72949.0,0.3608]
[1730230627626,0.068533,72962.0,72956.0,0.55833032]
[1730230627831,0.3608,72966.0,72956.0,0.55833032]
[1730230628035,0.068533,72961.0,72956.0,0.55833032]
[1730230628444,0.068533,72961.0,72956.0,0.62686732]
[1730230629134,0.068536,72957.0,72956.0,0.3608]
[1730230630045,1.50072,72960.0,72956.0,0.55833032]
[1730230630342,1.5,72960.0,72957.0,0.19753032]
[1730230630544,0.3608,72966.0,72959.0,0.068535]
[1730230630740,0.3608,72986.0,72982.0,0.068512]
[1730230630947,0.06852,72975.0,72972.0,0.3608]
[1730230631244,0.068519,72976.0,72970.0,0.068524]
[1730230631543,0.068519,72976.0,72967.0,0.19753032]
[1730230631544,0.3608,72974.0,72973.0,0.068521]
[1730230632044,0.3608,72980.0,72972.0,0.19753032]
[1730230632244,0.3608,72980.0,72972.0,0.26605232]
[1730230632245,0.068517,72978.0,72972.0,0.26605232]
[1730230632541,0.00076,72992.0,72977.0,0.55833032]
[1730230632836,0.00076,72992.0,72973.0,0.41108]
[1730230632837,0.00205616,72995.0,72991.0,0.55833032]
[1730230633048,0.00205616,72995.0,72994.0,0.068502]
[1730230633844,0.00205616,72995.0,72991.0,0.55965032]
[1730230634041,0.00205616,72995.0,72994.0,0.068502]
[1730230635740,0.00205616,72995.0,72991.0,0.55973032]
[1730230635947,0.26603432,72992.0,72991.0,0.3608]
[1730230636246,0.068504,72992.0,72991.0,0.3608]
[1730230636439,0.19468202,72992.0,72991.0,0.3608]
[1730230636635,0.12749377,72992.0,72991.0,0.3608]
[1730230636837,1.62749377,72992.0,72991.0,0.3608]
[1730230637338,0.12749377,72992.0,72991.0,0.3608]
[1730230637539,0.05898977,72992.0,72991.0,0.429305]
[1730230638246,0.069222,72994.0,72991.0,0.429305]
[1730230638437,0.00205616,72995.0,72992.0,0.19753032]
[1730230638743,0.00205616,72995.0,72994.0,0.068502]
[1730230639642,0.00205616,72995.0,72992.0,0.19753032]
[1730230639837,0.00205616,72995.0,72991.0,0.3608]
[1730230640041,0.00205616,72995.0,72994.0,0.068502]
[1730230640343,0.00205616,72995.0,72991.0,0.3608]
[1730230640565,0.00205616,72995.0,72994.0,0.068502]
[1730230641039,0.00205616,72995.0,72991.0,0.3608]
[1730230641242,0.068504,72992.0,72991.0,0.3608]
[1730230644056,0.19753032,72993.0,72984.0,0.3608]
[1730230644249,0.06851,72985.0,72984.0,0.3608]
[1730230644947,0.77184,72985.0,72974.0,0.36212]
[1730230645144,0.06852,72975.0,72974.0,0.38049446]
[1730230645343,0.06852,72975.0,72974.0,0.3608]
[1730230645649,1.5,72975.0,72965.0,0.0020556]
[1730230645842,0.068527,72967.0,72965.0,0.0020556]
[1730230646150,0.19753032,72969.0,72959.0,0.3608]
[1730230646151,0.068534,72960.0,72959.0,0.3608]
[1730230646363,0.068534,72960.0,72950.0,0.3608]
[1730230646364,0.068542,72951.0,72950.0,0.3608]
[1730230646549,0.26607232,72951.0,72950.0,0.3608]
[1730230646952,1.76607232,72951.0,72950.0,0.3608]
[1730230647452,1.5,72951.0,72950.0,0.3608]
[1730230647653,1.5,72951.0,72950.0,0.429343]
[1730230648745,1.5,72951.0,72950.0,0.3608]
[1730230648947,1.568542,72951.0,72950.0,0.3608]
[1730230649347,1.5,72951.0,72950.0,0.3608]
[1730230650548,1.5,72951.0,72950.0,0.429343]
[1730230651052,1.5,72951.0,72950.0,0.3608]
[1730230652553,1.5,72951.0,72950.0,0.3798845]
[1730230653059,1.568542,72951.0,72950.0,0.3798845]
[1730230653255,0.068549,72944.0,72943.0,0.3622]
[1730230653455,0.068549,72944.0,72943.0,0.3608]
[1730230654555,1.50072,72951.0,72943.0,0.3608]
[1730230654762,0.068545,72949.0,72943.0,0.3608]
[1730230654949,0.068545,72948.0,72943.0,0.429349]
[1730230655355,1.50084,72951.0,72948.0,0.068544]
[1730230655549,1.5,72951.0,72950.0,0.068543]
[1730230655750,0.068531,72964.0,72958.0,0.068536]
[1730230656262,1.8608,72959.0,72958.0,0.068536]
[1730230656660,1.5,72959.0,72958.0,0.068536]
[1730230658163,1.5,72959.0,72958.0,0.603816]
[1730230658362,0.00205685,72975.0,72974.0,0.06852]
[1730230658756,1.50205685,72975.0,72974.0,0.06852]
[1730230659251,1.50205685,72975.0,72970.0,0.068524]
[1730230659457,1.50205685,72975.0,72969.0,0.3608]
[1730230659657,0.068524,72971.0,72969.0,0.3608]
[1730230659972,1.50289685,72975.0,72969.0,0.3608]
[1730230660263,1.50205685,72975.0,72969.0,0.3608]
[1730230660465,0.068524,72970.0,72969.0,0.3608]
[1730230660656,0.66537439,72970.0,72963.0,0.01982317]
[1730230660860,0.66537439,72970.0,72960.0,0.068533]
[1730230661162,0.068529,72966.0,72960.0,0.068533]
[1730230661361,0.068531,72963.0,72958.0,0.068535]
[1730230661565,0.068528,72966.0,72962.0,0.068532]
[1730230663077,0.068532,72963.0,72957.0,0.44873873]
[1730230663367,0.068532,72963.0,72958.0,0.068535]
[1730230663562,0.30457439,72964.0,72957.0,0.3608]
[1730230663870,0.068536,72958.0,72957.0,0.3608]
[1730230664461,1.568536,72958.0,72957.0,0.3608]
[1730230670067,2.64511039,72958.0,72944.0,0.3608]
[1730230670267,0.068555,72938.0,72935.0,0.3608]
[1730230670466,0.068543,72950.0,72935.0,0.3608]
[1730230670467,0.19762255,72936.0,72935.0,0.3608]
[1730230670658,1.76617855,72936.0,72935.0,0.3608]
[1730230671660,1.5,72936.0,72935.0,0.3608]
[1730230671966,1.5,72936.0,72935.0,0.429357]
[1730230672166,1.76617855,72936.0,72935.0,0.3608]
[1730230674365,1.76617855,72936.0,72930.0,0.01929148]
[1730230674366,0.068561,72931.0,72930.0,0.01929148]
[1730230674567,0.068562,72930.0,72929.0,0.00205662]
[1730230675168,0.068562,72930.0,72929.0,0.04092411]
[1730230675364,0.068564,72928.0,72927.0,0.3608]
[1730230675873,1.568564,72928.0,72927.0,0.3608]
[1730230676572,0.06857,72922.0,72919.0,0.3608]
[1730230676773,0.26619255,72922.0,72919.0,0.3608]
[1730230677361,0.19762255,72922.0,72919.0,0.3608]
[1730230677562,0.19762255,72922.0,72919.0,0.38041158]
[1730230678775,0.068571,72920.0,72919.0,0.38041158]
[1730230682072,1.568571,72920.0,72919.0,0.3608]
[1730230682577,0.19762255,72940.0,72919.0,1.33062255]
[1730230682781,0.3608,72945.0,72942.0,0.06855]
[1730230683078,0.00205748,72951.0,72944.0,0.19762255]
[1730230683373,0.3608,72953.0,72952.0,0.068541]
[1730230683674,1.5,72959.0,72958.0,0.068536]
[1730230683875,0.068525,72969.0,72957.0,0.19762255]
[1730230684074,0.068523,72971.0,72965.0,0.068529]
[1730230684274,0.068523,72971.0,72966.0,0.068528]
[1730230684474,0.068523,72971.0,72967.0,0.068526]
[1730230684475,1.5,72970.0,72967.0,0.068526]
[1730230684673,1.5,72970.0,72959.0,0.19762255]
[1730230684674,1.5,72970.0,72960.0,0.3608]
[1730230684975,0.19762255,72965.0,72960.0,0.3608]
[1730230685174,0.068533,72961.0,72960.0,0.3608]
[1730230685769,1.568533,72961.0,72960.0,0.3608]
[1730230685967,1.76615555,72961.0,72960.0,0.3608]
[1730230686789,1.568533,72961.0,72960.0,0.3608]
[1730230687480,1.5,72961.0,72960.0,0.3608]
[1730230687681,1.5,72961.0,72960.0,0.429334]
[1730230689479,1.5,72961.0,72960.0,0.44832847]
[1730230691792,1.5,72961.0,72960.0,0.37979447]
[1730230692090,1.5,72961.0,72960.0,0.44832847]
[1730230692282,1.5,72961.0,72960.0,0.37979447]
[1730230692685,1.5,72961.0,72960.0,0.44832847]
[1730230694090,1.5,72961.0,72960.0,1.01089383]
[1730230694990,1.5,72961.0,72960.0,1.13493383]
[1730230695391,1.5,72961.0,72960.0,0.72373383]
[1730230695586,1.5,72961.0,72960.0,1.13493383]
[1730230696490,0.3608,72983.0,72960.0,1.36639983]
[1730230696692,0.068508,72988.0,72982.0,0.19762255]
[1730230696900,0.3628561,72992.0,72985.0,0.06851]
[1730230696901,0.068505,72991.0,72985.0,0.06851]
[1730230697396,1.5,72986.0,72982.0,0.19762255]
[1730230697602,1.5,72986.0,72982.0,0.26613455]
[1730230698793,1.5,72986.0,72982.0,0.19762255]
[1730230698988,1.5,72986.0,72985.0,0.3608]
[1730230699183,1.568509,72986.0,72985.0,0.3608]
[1730230700492,1.568509,72986.0,72985.0,0.36268344]
[1730230701397,1.568509,72986.0,72985.0,0.43119344]
[1730230701797,1.568509,72986.0,72985.0,0.36268344]
[1730230702193,1.568509,72986.0,72985.0,0.00188344]
[1730230702595,0.068512,72983.0,72963.0,0.3608]
[1730230702798,2.53797155,72986.0,72977.0,0.3608]
[1730230702799,0.2274,72985.0,72977.0,0.3608]
[1730230703304,0.068518,72977.0,72975.0,0.068519]
[1730230703699,1.5,72976.0,72975.0,0.068519]
[1730230703900,1.568519,72976.0,72975.0,0.068519]
[1730230705201,0.12404,72990.0,72975.0,0.068519]
[1730230705202,0.3608,72994.0,72991.0,0.068505]
[1730230705417,0.3608,72994.0,72991.0,0.26612755]
[1730230705702,0.3608,72994.0,72993.0,0.068503]
[1730230706097,1.8608,72994.0,72993.0,0.068503]
[1730230706800,1.8608,72994.0,72986.0,0.19762255]
[1730230707001,0.068508,72988.0,72984.0,0.3608]
[1730230707202,2.05842255,72994.0,72984.0,0.3608]
[1730230707402,0.2272,72993.0,72984.0,0.3608]
[1730230707598,0.06851,72985.0,72984.0,0.38045965]
[1730230707805,0.2272,72993.0,72975.0,0.36212]
[1730230707806,0.068517,72978.0,72975.0,0.36212]
[1730230708001,0.068517,72978.0,72975.0,0.429319]
[1730230708305,1.5,72977.0,72975.0,0.3608]
[1730230708506,1.5,72977.0,72976.0,0.068519]
[1730230708697,1.5,72977.0,72976.0,0.26614155]
[1730230709100,1.5,72977.0,72976.0,0.4156077]
[1730230711409,1.5,72977.0,72976.0,1.2505677]
[1730230712396,0.3608,72988.0,72987.0,0.068508]
[1730230712708,0.3608,72988.0,72987.0,0.26613055]
[1730230712912,1.8608,72988.0,72987.0,0.26613055]
[1730230713709,1.8608,72988.0,72987.0,0.068508]
[1730230713893,1.8608,72988.0,72982.0,0.3608]
[1730230714202,1.8608,72988.0,72970.0,0.19967798]
[1730230714203,2.05842255,72988.0,72970.0,0.19967798]
[1730230714504,0.068515,72981.0,72976.0,0.068518]
[1730230714703,0.068513,72982.0,72971.0,0.068523]
[1730230714902,0.26613855,72980.0,72970.0,0.02180458]
[1730230715102,0.068516,72980.0,72970.0,0.02180458]
[1730230715301,0.068516,72980.0,72977.0,0.068517]
[1730230715509,0.068511,72984.0,72974.0,0.06852]
[1730230715692,0.068511,72984.0,72981.0,0.068514]
[1730230716094,1.86152,72988.0,72983.0,0.19762255]
[1730230716305,1.8608,72988.0,72987.0,0.26613055]
[1730230719796,0.3608,73002.0,72996.0,0.0685]
[1730230720002,0.3608,73002.0,73001.0,0.26611755]
[1730230720299,1.81898136,73002.0,73001.0,0.26611755]
[1730230720499,1.88056433,73002.0,73001.0,0.26611755]
[1730230720901,1.88060345,73002.0,73001.0,0.26611755]
[1730230721097,1.81898136,73002.0,72992.0,0.3608]
[1730230721309,1.81898136,73002.0,72981.0,0.26613655]
[1730230721310,0.3608,72995.0,72981.0,0.26613655]
[1730230721608,0.13178415,72994.0,72989.0,0.068506]
[1730230721801,0.429301,72995.0,72986.0,0.19762255]
[1730230721802,0.13178415,72993.0,72986.0,0.19762255]
[1730230722108,0.13178415,72992.0,72986.0,0.19762255]
[1730230722307,0.068501,72996.0,72991.0,0.19762255]
[1730230722496,0.13079142,72995.0,72994.0,0.068502]
[1730230723807,0.0611544,72995.0,72994.0,0.068502]
[1730230725603,0.0611544,72995.0,72994.0,0.63508699]
[1730230726717,0.31898136,73002.0,72994.0,0.58577825]
[1730230726718,0.0611544,73001.0,72994.0,0.58577825]
[1730230726916,0.13256128,73001.0,72994.0,0.17477825]
[1730230727104,0.19762255,72995.0,72994.0,0.01919326]
[1730230727414,0.13204002,72995.0,72989.0,0.3608]
[1730230727603,0.19762255,72990.0,72981.0,0.36212]
[1730230727805,0.068513,72982.0,72981.0,0.3608]
[1730230728004,0.12996009,72982.0,72981.0,0.3608]
[1730230728205,0.12996009,72982.0,72977.0,0.068517]
[1730230728514,0.068513,72982.0,72977.0,0.14947648]
[1730230728704,0.068513,72982.0,72978.0,0.068517]
[1730230729501,0.06851,72985.0,72978.0,0.068517]
[1730230729701,0.06851,72985.0,72979.0,0.068515]
[1730230730004,0.3608,72987.0,72977.0,0.14824963]
[1730230730204,0.3608,72987.0,72980.0,0.19762255]
[1730230730509,0.429309,72987.0,72983.0,0.068512]
[1730230731510,0.068511,72985.0,72980.0,0.19762255]
[1730230731714,1.5,72986.0,72979.0,0.068515]
[1730230731715,0.068512,72984.0,72979.0,0.068515]
[1730230731912,0.55842255,72981.0,72977.0,0.01900214]
[1730230732116,0.068517,72978.0,72971.0,0.068523]
[1730230732418,0.068519,72976.0,72971.0,0.068523]
[1730230732713,0.068519,72976.0,72971.0,0.08774105]
[1730230732911,0.06852,72975.0,72971.0,0.08774105]
[1730230733114,0.06852,72975.0,72971.0,0.01921805]
[1730230733306,0.06852,72975.0,72972.0,0.068522]
[1730230734202,0.55842255,72981.0,72972.0,0.068522]
[1730230734406,0.068518,72977.0,72972.0,0.068522]
[1730230734609,0.55842255,72981.0,72970.0,0.02177143]
[1730230734810,0.068523,72971.0,72970.0,0.02177143]
[1730230735109,0.19762255,72971.0,72963.0,0.3608]
[1730230735310,0.3608,72974.0,72963.0,0.3608]
[1730230735311,0.06853,72965.0,72963.0,0.3608]
[1730230735516,0.06853,72965.0,72960.0,0.068533]
[1730230736716,0.06853,72965.0,72960.0,0.08780318]
[1730230737016,0.06853,72964.0,72960.0,0.01927018]
[1730230737220,0.06853,72964.0,72957.0,0.068536]
[1730230737410,0.19762255,72966.0,72952.0,0.05467614]
[1730230737617,0.068533,72961.0,72950.0,0.19762255]
[1730230737805,0.26615055,72966.0,72950.0,0.21690441]
[1730230738003,0.068529,72965.0,72956.0,0.068537]
[1730230738207,0.19762255,72966.0,72956.0,0.068537]
[1730230738408,0.06853,72964.0,72956.0,0.068537]
[1730230739023,0.06853,72964.0,72958.0,0.068535]
[1730230739514,0.06853,72964.0,72959.0,0.068534]
[1730230740418,0.3608,72967.0,72959.0,0.068534]
[1730230740620,0.3608,72967.0,72966.0,0.26615055]
[1730230742618,0.3608,72974.0,72966.0,0.28588751]
[1730230742815,0.3608,72974.0,72973.0,0.26614355]
[1730230743114,1.8608,72974.0,72973.0,0.26614355]
[1730230743515,0.3608,72974.0,72973.0,0.26614355]
[1730230743717,0.3608,72974.0,72973.0,0.42334334]
[1730230744510,1.50072,72982.0,72973.0,0.83446334]
[1730230744718,1.5,72982.0,72981.0,0.26613655]
[1730230745611,0.5831,72993.0,72992.0,0.068504]
[1730230745809,0.3608,72993.0,72992.0,0.26612655]
[1730230746514,1.8608,72993.0,72992.0,0.26612655]
[1730230746721,1.5,72993.0,72992.0,0.26612655]
[1730230748314,1.5,72993.0,72992.0,0.28579388]
[1730230748619,1.568503,72993.0,72992.0,0.01966733]
[1730230748823,1.568503,72993.0,72990.0,0.3608]
[1730230749014,0.068504,72992.0,72990.0,0.3608]
[1730230749418,1.50072,72993.0,72992.0,0.068504]
[1730230749616,1.5,72993.0,72992.0,0.26612655]
[1730230749921,0.3608,73002.0,72997.0,0.068499]
[1730230750120,0.3608,73002.0,72998.0,0.068498]
[1730230750323,0.3608,73002.0,72992.0,0.19762255]
[1730230750521,0.3608,73002.0,72996.0,0.068499]
[1730230750719,1.5,73001.0,72990.0,0.37979028]
[1730230750923,0.19762255,72998.0,72990.0,0.37979028]
[1730230751120,0.068503,72994.0,72990.0,0.37979028]
[1730230751623,0.19762255,72998.0,72990.0,0.37979028]
[1730230751820,0.068499,72997.0,72992.0,0.068503]
[1730230752218,1.5008,73001.0,72990.0,0.37979028]
[1730230752420,1.5,73001.0,72993.0,0.19762255]
[1730230752623,0.068498,72999.0,72995.0,0.0685]
[1730230752921,1.5,73001.0,72994.0,0.068502]
[1730230752922,1.50072,73001.0,72994.0,0.068502]
[1730230753116,1.5,73001.0,72993.0,0.19762255]
[1730230753327,0.068496,73000.0,72997.0,0.068498]
[1730230753527,0.068497,72999.0,72993.0,0.26612455]
[1730230753722,0.068499,72997.0,72990.0,0.01899028]
[1730230753928,0.068499,72997.0,72988.0,0.19762255]
[1730230753929,0.068499,72997.0,72994.0,0.068502]
[1730230754525,1.569256,73001.0,72988.0,0.19762255]
[1730230754722,1.568496,73001.0,72991.0,0.3608]
[1730230755027,1.568496,73001.0,72996.0,0.068499]
[1730230755827,0.068496,73001.0,72996.0,0.068499]
[1730230756319,0.068496,73001.0,72993.0,0.19762255]
[1730230756523,0.068496,73001.0,72998.0,0.068497]
[1730230757432,1.5,72999.0,72998.0,0.068497]
[1730230757632,1.56278755,72999.0,72998.0,0.068497]
[1730230758032,1.63128555,72999.0,72996.0,0.0685]
[1730230758227,0.19762255,72997.0,72992.0,0.429303]
[1730230758425,0.068503,72993.0,72992.0,0.3608]
[1730230759223,1.568503,72993.0,72992.0,0.3608]
[1730230759933,1.5,72993.0,72992.0,0.3608]
[1730230760127,1.5,72993.0,72992.0,0.429304]
[1730230760729,1.5,72993.0,72992.0,0.62692655]
[1730230761833,1.5,72993.0,72992.0,0.429304]
[1730230763733,0.3608,73002.0,72992.0,0.77983335]
[1730230763933,0.5906,73006.0,73001.0,0.19762255]
[1730230764234,0.06375051,73005.0,73003.0,0.068493]
[1730230764431,0.06375051,73004.0,73003.0,0.068493]
[1730230764832,1.56375051,73004.0,73003.0,0.068493]
[1730230765733,1.5,73004.0,73003.0,0.068493]
[1730230766235,1.568492,73004.0,73003.0,0.068493]
[1730230771135,1.5,73004.0,73003.0,0.20011354]
[1730230771641,1.5,73004.0,73003.0,0.2249984]
[1730230771849,1.568492,73004.0,73003.0,0.2249984]
[1730230772537,1.5,73004.0,73003.0,0.2249984]
[1730230772935,1.56388242,73004.0,73003.0,0.2249984]
[1730230774444,1.62789732,73004.0,73003.0,0.2249984]
[1730230774641,1.5640149,73004.0,73003.0,0.2249984]
[1730230776140,0.068503,72994.0,72992.0,0.36232]
[1730230776344,0.20012354,72993.0,72992.0,0.38538575]
[1730230776541,0.06373428,72993.0,72992.0,0.45388975]
[1730230776745,0.13223728,72993.0,72992.0,0.45388975]
[1730230777049,1.63223728,72993.0,72992.0,0.45388975]
[1730230778439,1.63223728,72993.0,72992.0,0.38538575]
[1730230779038,1.99303728,72993.0,72985.0,0.13162054]
[1730230779239,0.068511,72985.0,72967.0,0.3608]
[1730230779439,0.068511,72985.0,72959.0,0.49242054]
[1730230779440,0.49242054,72971.0,72959.0,0.3624]
[1730230779641,0.20015054,72964.0,72959.0,0.3608]
[1730230779941,0.068532,72962.0,72959.0,0.3608]
[1730230780146,0.068533,72961.0,72959.0,0.3608]
[1730230780443,0.2244,72963.0,72959.0,0.38534197]
[1730230780649,0.4379,72963.0,72959.0,0.38534197]
[1730230780854,0.4379,72963.0,72900.0,0.08610902]
[1730230780855,0.3608,72944.0,72931.0,0.08200175]
[1730230781145,1.095,72962.0,72929.0,0.05468458]
[1730230781146,0.7216,72932.0,72929.0,0.05468458]
[1730230781354,0.7216,72932.0,72926.0,0.13162054]
[1730230781553,0.7216,72932.0,72931.0,0.13162054]
[1730230781852,0.7216,72932.0,72931.0,0.20018154]
[1730230782157,0.7216,72932.0,72931.0,0.13162054]
[1730230782338,0.7216,72932.0,72931.0,0.20018154]
[1730230782650,0.31261156,72932.0,72931.0,0.6245891]
[1730230782852,0.3608,72944.0,72931.0,0.8560281]
[1730230783052,0.24267,72944.0,72943.0,0.06855]
[1730230783450,0.24267,72944.0,72936.0,0.3608]
[1730230783649,0.24267,72944.0,72906.0,0.0001045]
[1730230783650,0.068565,72927.0,72913.0,0.3608]
[1730230783855,0.75598176,72937.0,72906.0,0.02480155]
[1730230783856,0.75598176,72914.0,72906.0,0.02480155]
[1730230784147,0.82456476,72907.0,72906.0,0.01132344]
[1730230784352,0.068591,72899.0,72898.0,0.00205752]
[1730230784541,0.068591,72899.0,72898.0,0.02652346]
[1730230784542,0.62698188,72899.0,72898.0,0.02652346]
[1730230784743,0.62698188,72899.0,72898.0,0.02446594]
[1730230784944,0.62698188,72899.0,72870.0,0.5661]
[1730230784945,0.068604,72885.0,72870.0,0.5661]
[1730230785151,0.19759088,72873.0,72871.0,0.12348]
[1730230785353,0.19759088,72873.0,72872.0,0.15127404]
[1730230785552,0.19759088,72873.0,72871.0,0.75505104]
[1730230785858,0.19759088,72873.0,72871.0,0.068617]
[1730230786060,0.19759088,72873.0,72872.0,0.1498454]
[1730230786363,0.068633,72855.0,72838.0,0.068648]
[1730230786556,0.3,72872.0,72838.0,0.09255268]
[1730230786557,0.3608,72839.0,72838.0,0.09255268]
[1730230786864,0.3608,72839.0,72838.0,0.23798861]
[1730230787157,0.3608,72839.0,72833.0,0.12352]
[1730230787355,0.19759088,72834.0,72833.0,0.12352]
[1730230788251,0.19759088,72834.0,72824.0,0.02444293]
[1730230788448,0.55839088,72825.0,72803.0,0.0206]
[1730230788662,0.55839088,72819.0,72818.0,0.02662694]
[1730230788859,0.55839088,72819.0,72818.0,0.00205979]
[1730230790252,0.3608,72819.0,72818.0,0.41405979]
[1730230790446,0.3608,72825.0,72818.0,1.06267196]
[1730230790651,0.3608,72835.0,72824.0,0.55839088]
[1730230790852,0.35631793,72835.0,72833.0,0.068653]
[1730230791049,0.35631793,72835.0,72817.0,0.068668]
[1730230791050,0.06866,72826.0,72774.0,0.3814]
[1730230791264,0.75598176,72794.0,72774.0,0.3608]
[1730230791456,0.3608,72790.0,72771.0,0.1236]
[1730230791848,0.3608,72790.0,72767.0,0.19759088]
[1730230791849,0.77296,72790.0,72780.0,0.02426984]
[1730230792060,0.068704,72780.0,72764.0,0.068718]
[1730230792356,0.3,72789.0,72759.0,0.0020612]
[1730230792357,0.3608,72765.0,72759.0,0.0020612]
[1730230792561,0.3608,72760.0,72759.0,0.30743827]
[1730230792856,0.3608,72766.0,72765.0,0.068717]
[1730230793056,0.3608,72766.0,72765.0,0.49777407]
[1730230793252,0.3608,72766.0,72765.0,1.06644081]
[1730230793451,0.3608,72775.0,72765.0,1.35852381]
[1730230793657,0.3608,72775.0,72774.0,0.068709]
[1730230793857,0.00206223,72780.0,72779.0,0.068704]
[1730230794059,0.00206223,72780.0,72779.0,0.49776107]
[1730230794259,0.00206223,72780.0,72779.0,0.65159748]
[1730230794460,0.00206223,72780.0,72779.0,1.06379748]
[1730230794759,0.3608,72786.0,72785.0,0.068698]
[1730230795064,0.3608,72786.0,72785.0,0.37407507]
[1730230796051,0.3608,72792.0,72791.0,0.068693]
[1730230796359,0.3608,72801.0,72799.0,0.068685]
[1730230796566,0.3608,72801.0,72800.0,0.30537707]
[1730230796760,0.00206151,72811.0,72800.0,0.66617707]
[1730230796965,0.3608,72873.0,72823.0,0.30537707]
[1730230797151,0.3608,72860.0,72849.0,0.3608]
[1730230797356,0.068637,72851.0,72849.0,0.3608]
[1730230797657,0.71176,72859.0,72849.0,0.3608]
[1730230797963,0.280923,72865.0,72855.0,0.3608]
[1730230799062,0.280923,72865.0,72855.0,0.429432]
[1730230799366,0.2123,72865.0,72857.0,0.06863]
[1730230800765,1.5,72858.0,72857.0,0.06863]
[1730230802363,1.5,72858.0,72857.0,0.37400707]
[1730230802759,1.5,72858.0,72857.0,0.5311085]
[1730230803058,1.5,72858.0,72857.0,0.9428685]
[1730230803253,0.00206006,72869.0,72857.0,1.1742385]
[1730230803463,0.00206006,72869.0,72868.0,1.09559707]
[1730230803864,1.5,72889.0,72868.0,1.58245131]
[1730230804167,1.5,72889.0,72882.0,0.068606]
[1730230804364,1.5,72889.0,72868.0,0.50455424]
[1730230804365,0.3608,72883.0,72868.0,0.3608]
[1730230804562,0.30537707,72871.0,72852.0,0.3608]
[1730230804757,0.068625,72863.0,72852.0,0.3608]
[1730230805063,0.30537707,72860.0,72845.0,0.3608]
[1730230805257,0.30537707,72860.0,72855.0,0.068632]
[1730230805460,0.068633,72854.0,72845.0,0.3608]
[1730230805663,0.30537707,72850.0,72845.0,0.3608]
[1730230805862,0.3608,72857.0,72856.0,0.068631]
[1730230806269,0.3608,72864.0,72863.0,0.068625]
[1730230806566,1.8608,72864.0,72863.0,0.068625]
[1730230807756,1.8608,72864.0,72863.0,0.38186572]
[1730230807757,1.5,72864.0,72863.0,0.38186572]
[1730230807963,0.00206004,72869.0,72863.0,0.93138634]
[1730230808166,0.30537707,72895.0,72868.0,0.66617707]
[1730230808467,0.30537707,72895.0,72878.0,0.3608]
[1730230808663,0.30537707,72895.0,72889.0,0.0686]